fUSD/lending_fUSD_20250304
["ID","MTS","AMOUNT","RATE_DAILY","PERIOD"]
[355359623,1741079432973,-1371.15,0.00010994,2]
[355359624,1741079432983,-500.0,0.00010994,2]
[355359625,1741079432993,-608.16,0.00010994,2]
[355359626,1741079433002,-1005.31,0.00010994,2]
[355359627,1741079433012,-500.0,0.00010994,2]
[355359628,1741079433022,-500.0,0.00010994,2]
[355359629,1741079433033,-500.0,0.00010994,2]
[355359630,1741079433043,-500.0,0.00010994,2]
[355359631,1741079433053,-939.87,0.00010994,2]
[355359632,1741079433062,-518.94525702,0.00010994,2]
[355359633,1741079433072,-500.0,0.00010994,2]
[355359634,1741079433082,-707.88,0.00010994,2]
[355359635,1741079433096,-1156.47,0.00010994,2]
[355359636,1741079433107,-1065.15,0.00010994,2]
[355359637,1741079433118,-509.98718155,0.00010994,2]
[355359638,1741079433129,-168.95392166,0.00010994,2]
[355359639,1741079433140,-951.96,0.00010994,2]
[355359640,1741079433151,-500.0,0.00010994,2]
[355359641,1741079433162,-500.0,0.00010994,2]
[355359642,1741079433172,-500.0,0.00010994,2]
[355359643,1741079433183,-500.0,0.00010994,2]
[355359644,1741079433195,-500.0,0.00010994,2]
[355359645,1741079433206,-584.42,0.00010994,2]
[355359646,1741079433217,-1320.65,0.00010994,2]
[355359647,1741079433227,-717.34,0.00010994,2]
[355359648,1741079433238,-985.56,0.00010994,2]
[355359649,1741079433248,-500.0,0.00010994,2]
[355359650,1741079433261,-521.10834846,0.00010994,2]
[355359651,1741079433283,-449.32685517,0.00010994,2]
[355359652,1741079433296,-120.44479637,0.00010994,2]
[355359653,1741079433307,-179.54520363,0.00010994,2]
[355359843,1741079439735,-293.93629405,0.00010993,2]
[355359860,1741079439898,-302.69939355,0.00010993,2]
[355359867,1741079439959,-366.7843124,0.00010993,2]
[355359871,1741079439986,-909.58,0.00010993,2]
[355359873,1741079439996,-2339.87,0.00010993,2]
[355359875,1741079440007,-320.45479637,0.00010994,2]
[355359877,1741079440017,-500.0,0.00010994,2]
[355359879,1741079440027,-824.59,0.00010994,2]
[355359882,1741079440038,-532.89227805,0.00010994,2]
[355359883,1741079440048,-753.82,0.00010994,2]
[355359886,1741079440059,-865.59,0.00010994,2]
[355359888,1741079440069,-1145.57,0.00010994,2]
[355359890,1741079440078,-519.90007505,0.00010994,2]
[355359892,1741079440089,-706.12,0.00010994,2]
[355359894,1741079440100,-500.0,0.00010994,2]
[355359896,1741079440110,-570.37816878,0.00010994,2]
[355359898,1741079440120,-510.02,0.00010994,2]
[355359920,1741079440505,-676.9,0.00010994,2]
[355359922,1741079440531,-532.73,0.00010994,2]
[355359923,1741079440541,-662.0,0.00010994,2]
[355359925,1741079440551,-867.25,0.00010994,2]
[355359927,1741079440561,-500.0,0.00010994,2]
[355359929,1741079440571,-462.05997535,0.00010994,2]
[355359931,1741079440582,-701.77,0.00010994,2]
[355359933,1741079440595,-807.38,0.00010994,2]
[355359936,1741079440606,-500.0,0.00010994,2]
[355359938,1741079440615,-749.3,0.00010994,2]
[355359940,1741079440626,-500.0,0.00010994,2]
[355359942,1741079440636,-832.06,0.00010994,2]
[355359944,1741079440646,-500.0,0.00010994,2]
[355359946,1741079440656,-730.29,0.00010994,2]
[355359948,1741079440671,-500.0,0.00010994,2]
[355359950,1741079440681,-777.93,0.00010994,2]
[355359952,1741079440692,-695.09,0.00010994,2]
[355359954,1741079440702,-505.42,0.00010994,2]
[355359956,1741079440712,-1122.57,0.00010994,2]
[355359958,1741079440722,-500.0,0.00010994,2]
[355359960,1741079440733,-1280.11,0.00010994,2]
[355359962,1741079440744,-500.0,0.00010994,2]
[355359964,1741079440754,-500.0,0.00010994,2]
[355359967,1741079440764,-500.0,0.00010994,2]
[355359969,1741079440775,-641.81,0.00010994,2]
[355359971,1741079440785,-700.85,0.00010994,2]
[355359973,1741079440795,-500.0,0.00010994,2]
[355359974,1741079440804,-441.65246287,0.00010994,2]
[355359976,1741079440814,-500.0,0.00010994,2]
[355359978,1741079440824,-500.0,0.00010994,2]
[355359980,1741079440835,-1212.51,0.00010994,2]
[355359982,1741079440852,-753.57,0.00010994,2]
[355359985,1741079440863,-500.0,0.00010994,2]
[355359987,1741079440873,-500.0,0.00010994,2]
[355359988,1741079440884,-806.95,0.00010994,2]
[355359991,1741079440896,-541.58,0.00010994,2]
[355359993,1741079440906,-707.6,0.00010994,2]
[355359995,1741079440917,-1784.02,0.00010994,2]
[355359996,1741079440928,-569.12261371,0.00010994,2]
[355359999,1741079440939,-500.0,0.00010994,2]
[355360000,1741079440949,-562.03,0.00010994,2]
[355360002,1741079440959,-652.34,0.00010994,2]
[355360004,1741079440969,-673.3,0.00010994,2]
[355360006,1741079440979,-619.58,0.00010994,2]
[355360009,1741079440990,-786.87,0.00010994,2]
[355360010,1741079441001,-2236.39,0.00010994,2]
[355360012,1741079441011,-500.0,0.00010994,2]
[355360014,1741079441021,-1724.72,0.00010994,2]
[355360016,1741079441031,-1371.5,0.00010994,2]
[355360018,1741079441041,-500.0,0.00010994,2]
[355360020,1741079441053,-212.96,0.00010994,2]
[355360022,1741079441064,-615.8,0.00010994,2]
[355360025,1741079441074,-704.71,0.00010994,2]
[355360027,1741079441084,-1002.3,0.00010994,2]
[355360029,1741079441097,-667.83,0.00010994,2]
[355360031,1741079441108,-2169.97,0.00010994,2]
[355360033,1741079441118,-500.0,0.00010994,2]
[355360035,1741079441129,-500.0,0.00010994,2]
[355360037,1741079441143,-1694.43,0.00010994,2]
[355360039,1741079441154,-500.0,0.00010994,2]
[355360041,1741079441165,-339.52519862,0.00010994,2]
[355360043,1741079441175,-171.55634352,0.00010994,2]
[355360046,1741079441186,-2084.11,0.00010994,2]
[355360047,1741079441197,-634.95,0.00010994,2]
[355360050,1741079441207,-777.55,0.00010994,2]
[355360052,1741079441217,-1236.39,0.00010994,2]
[355360054,1741079441227,-836.13,0.00010994,2]
[355360056,1741079441237,-913.68,0.00010994,2]
[355360058,1741079441247,-709.58,0.00010994,2]
[355360060,1741079441256,-593.52,0.00010994,2]
[355360062,1741079441266,-500.0,0.00010994,2]
[355360064,1741079441278,-655.86,0.00010994,2]
[355360065,1741079441288,-2455.96,0.00010994,2]
[355360067,1741079441298,-2264.2,0.00010994,2]
[355360069,1741079441308,-175.29045356,0.00010994,2]
[355360072,1741079441319,-1675.52,0.00010994,2]
[355360074,1741079441329,-4832.22,0.00010994,2]
[355360076,1741079441340,-521.26,0.00010994,2]
[355360078,1741079441354,-997.19,0.00010994,2]
[355360079,1741079441364,-500.0,0.00010994,2]
[355360082,1741079441374,-730.43,0.00010994,2]
[355360084,1741079441384,-846.46,0.00010994,2]
[355360086,1741079441394,-854.88,0.00010994,2]
[355360088,1741079441403,-500.0,0.00010994,2]
[355360090,1741079441413,-522.846505,0.00010994,2]
[355360092,1741079441422,-1465.22,0.00010994,2]
[355360094,1741079441433,-2820.63,0.00010994,2]
[355360096,1741079441443,-5413.02,0.00010994,2]
[355360098,1741079441453,-1419.37,0.00010994,2]
[355360100,1741079441463,-550.26,0.00010994,2]
[355360102,1741079441473,-5782.19,0.00010994,2]
[355360104,1741079441484,-2447.36,0.00010994,2]
[355360106,1741079441493,-500.0,0.00010994,2]
[355360108,1741079441504,-1304.44,0.00010994,2]
[355360110,1741079441514,-2427.7,0.00010994,2]
[355360112,1741079441524,-24226.95,0.00010994,2]
[355360114,1741079441534,-685.91,0.00010994,2]
[355360116,1741079441548,-3251.62,0.00010994,2]
[355360118,1741079441558,-1515.66,0.00010994,2]
[355360120,1741079441568,-500.0,0.00010994,2]
[355360122,1741079441578,-705.31,0.00010994,2]
[355360124,1741079441587,-500.0,0.00010994,2]
[355360126,1741079441600,-500.0,0.00010994,2]
[355360128,1741079441610,-517.25823944,0.00010994,2]
[355360130,1741079441624,-500.0,0.00010994,2]
[355360133,1741079441635,-500.0,0.00010994,2]
[355360135,1741079441645,-4180.42,0.00010994,2]
[355360137,1741079441655,-1689.07,0.00010994,2]
[355360139,1741079441666,-993.72,0.00010994,2]
[355360141,1741079441676,-2755.81,0.00010994,2]
[355360143,1741079441685,-2289.97,0.00010994,2]
[355360145,1741079441695,-2332.7,0.00010994,2]
[355360147,1741079441704,-753.45,0.00010994,2]
[355360149,1741079441714,-993.36,0.00010994,2]
[355360151,1741079441724,-1102.47,0.00010994,2]
[355360153,1741079441734,-2472.35,0.00010994,2]
[355360155,1741079441743,-340.21806809,0.00010994,2]
[355360157,1741079441753,-500.0,0.00010994,2]
[355360159,1741079441763,-2352.41,0.00010994,2]
[355360161,1741079441773,-2514.84,0.00010994,2]
[355360163,1741079441783,-510.15942939,0.00010994,2]
[355360165,1741079441793,-1241.74,0.00010994,2]
[355360167,1741079441803,-500.0,0.00010994,2]
[355360169,1741079441813,-355.47645566,0.00010994,2]
[355360183,1741079441948,-151.00189893,0.00010994,2]
[355360185,1741079441958,-174.79210013,0.00010994,2]
[355360393,1741079443590,-777.52,0.00010993,2]
[355360527,1741079445056,-701.98,0.00010993,2]
[355360529,1741079445066,-362.66789987,0.00010994,2]
[355360531,1741079445077,-4522.34,0.00010994,2]
[355360533,1741079445086,-3920.47,0.00010994,2]
[355360535,1741079445098,-500.0,0.00010994,2]
[355360537,1741079445108,-1741.86,0.00010994,2]
[355360539,1741079445118,-725.94,0.00010994,2]
[355360541,1741079445127,-500.0,0.00010994,2]
[355360543,1741079445137,-4981.3,0.00010994,2]
[355360545,1741079445146,-30669.13,0.00010994,2]
[355360547,1741079445155,-500.0,0.00010994,2]
[355360549,1741079445165,-695.99,0.00010994,2]
[355360551,1741079445174,-3595.82,0.00010994,2]
[355360553,1741079445183,-3843.19,0.00010994,2]
[355360555,1741079445192,-1275.2,0.00010994,2]
[355360557,1741079445202,-957.0,0.00010994,2]
[355360559,1741079445211,-2799.37,0.00010994,2]
[355360561,1741079445221,-506.0734516,0.00010994,2]
[355360563,1741079445231,-500.0,0.00010994,2]
[355360565,1741079445240,-2041.72,0.00010994,2]
[355360567,1741079445249,-500.0,0.00010994,2]
[355360569,1741079445259,-4039.38,0.00010994,2]
[355360571,1741079445269,-525.5,0.00010994,2]
[355360573,1741079445285,-615.23,0.00010994,2]
[355360575,1741079445294,-3070.81,0.00010994,2]
[355360577,1741079445303,-8669.63,0.00010994,2]
[355360579,1741079445312,-509.04687576,0.00010994,2]
[355360581,1741079445322,-3704.54,0.00010994,2]
[355360583,1741079445332,-510.77796299,0.00010994,2]
[355360585,1741079445344,-514.80245651,0.00010994,2]
[355360587,1741079445354,-1935.97,0.00010994,2]
[355360589,1741079445363,-507.94670251,0.00010994,2]
[355360591,1741079445372,-836.84,0.00010994,2]
[355360593,1741079445382,-513.82,0.00010994,2]
[355360595,1741079445391,-168.19389338,0.00010994,2]
[355360597,1741079445401,-508.06772677,0.00010994,2]
[355360599,1741079445411,-815.43,0.00010994,2]
[355360601,1741079445421,-6013.29,0.00010994,2]
[355360603,1741079445431,-1919.82,0.00010994,2]
[355360605,1741079445440,-1644.49,0.00010994,2]
[355360607,1741079445450,-1062.05,0.00010994,2]
[355360609,1741079445460,-3367.24,0.00010994,2]
[355360611,1741079445470,-500.0,0.00010994,2]
[355360613,1741079445481,-500.0,0.00010994,2]
[355360616,1741079445490,-903.58,0.00010994,2]
[355360618,1741079445500,-504.39751088,0.00010994,2]
[355360620,1741079445509,-869.73,0.00010994,2]
[355360622,1741079445518,-506.04937492,0.00010994,2]
[355360624,1741079445528,-5940.96,0.00010994,2]
[355360626,1741079445538,-1979.85,0.00010994,2]
[355360628,1741079445547,-957.03,0.00010994,2]
[355360630,1741079445557,-3181.28,0.00010994,2]
[355360632,1741079445566,-2932.71,0.00010994,2]
[355360634,1741079445576,-2860.74,0.00010994,2]
[355360636,1741079445585,-1104.78,0.00010994,2]
[355360639,1741079445595,-2327.57,0.00010994,2]
[355360642,1741079445605,-500.0,0.00010994,2]
[355360644,1741079445614,-1085.03,0.00010994,2]
[355360646,1741079445624,-500.0,0.00010994,2]
[355360648,1741079445633,-479.47772661,0.00010994,2]
[355360650,1741079445643,-564.27265673,0.00010994,2]
[355360652,1741079445652,-11590.73,0.00010994,2]
[355360654,1741079445662,-4187.58,0.00010994,2]
[355360656,1741079445671,-500.0,0.00010994,2]
[355360658,1741079445681,-509.57198995,0.00010994,2]
[355360660,1741079445691,-507.87599646,0.00010994,2]
[355360662,1741079445700,-500.0,0.00010994,2]
[355360664,1741079445710,-2392.22,0.00010994,2]
[355360666,1741079445719,-500.0,0.00010994,2]
[355360668,1741079445728,-2477.93,0.00010994,2]
[355360670,1741079445739,-1013.84,0.00010994,2]
[355360672,1741079445749,-1410.05,0.00010994,2]
[355360674,1741079445759,-4064.77,0.00010994,2]
[355360676,1741079445769,-2741.36,0.00010994,2]
[355360678,1741079445778,-1096.39,0.00010994,2]
[355360680,1741079445788,-500.0,0.00010994,2]
[355360682,1741079445797,-844.51,0.00010994,2]
[355360684,1741079445806,-604.12,0.00010994,2]
[355360686,1741079445816,-659.21,0.00010994,2]
[355360688,1741079445826,-944.81,0.00010994,2]
[355360691,1741079445837,-211.07837888,0.00010994,2]
[355360693,1741079445847,-500.0,0.00010994,2]
[355360695,1741079445857,-1354.97,0.00010994,2]
[355360696,1741079445866,-2257.21,0.00010994,2]
[355360698,1741079445876,-500.0,0.00010994,2]
[355360700,1741079445886,-500.0,0.00010994,2]
[355360702,1741079445896,-4412.62,0.00010994,2]
[355360703,1741079445906,-500.0,0.00010994,2]
[355360705,1741079445916,-500.0,0.00010994,2]
[355360707,1741079445925,-503.11415521,0.00010994,2]
[355360709,1741079445934,-738.27,0.00010994,2]
[355360710,1741079445944,-747.7,0.00010994,2]
[355360712,1741079445954,-3010.22,0.00010994,2]
[355360714,1741079445964,-1710.71,0.00010994,2]
[355360716,1741079445973,-1226.54,0.00010994,2]
[355360718,1741079445983,-500.0,0.00010994,2]
[355360719,1741079445992,-2146.34,0.00010994,2]
[355360721,1741079446002,-500.0,0.00010994,2]
[355360723,1741079446012,-2140.13,0.00010994,2]
[355360725,1741079446022,-500.0,0.00010994,2]
[355360727,1741079446031,-965.89,0.00010994,2]
[355360728,1741079446042,-634.48,0.00010994,2]
[355360730,1741079446052,-500.0,0.00010994,2]
[355360732,1741079446061,-2047.62,0.00010994,2]
[355360734,1741079446071,-1454.9,0.00010994,2]
[355360735,1741079446080,-500.0,0.00010994,2]
[355360737,1741079446091,-3897.25,0.00010994,2]
[355360739,1741079446102,-682.1596769,0.00010994,2]
[355360770,1741079446490,-500.0,0.00010993,2]
[355360772,1741079446500,-474.2703231,0.00010994,2]
[355360774,1741079446510,-2775.8,0.00010994,2]
[355360776,1741079446519,-542.02970241,0.00010994,2]
[355362464,1741079558929,150.0,0.00010212,7]
[355362465,1741079568534,158.9,0.00010212,2]
[355362466,1741079641883,-158.9,0.00010315,2]
[355362467,1741079641909,-158.9,0.00010417,2]
[355362468,1741079641933,-158.9,0.00010519,2]
[355362469,1741079641957,-158.9,0.00010621,2]
[355362470,1741079641980,-228.48,0.00010655,2]
[355362471,1741079687216,378.01,0.00010133,2]
[355362474,1741079876818,-189.29704497,0.00010601,2]
[355362475,1741079939146,-158.9,0.00010723,2]
[355362476,1741079939171,-30.39704497,0.00010825,2]
[355362477,1741079943487,163.37,0.00010072,2]
[355362479,1741080003411,150.0,0.00014016,30]
[355362480,1741080003905,150.0,0.00014016,30]
[355362481,1741080004407,150.0,0.00014016,30]
[355362482,1741080004865,150.0,0.00014016,30]
[355362483,1741080005424,150.0,0.00014016,30]
[355362485,1741080091143,25.92704497,0.00010038,2]
[355362486,1741080091167,457.10295503,0.00010038,2]
[355362487,1741080174350,626.24,8.219e-05,2]
[355362488,1741080237137,-500.0,0.00013699,13]
[355362489,1741080237168,-494.0,0.00013699,13]
[355362490,1741080237227,-6.0,0.00014,14]
[355362491,1741080283811,-445.62,0.00010426,2]
[355362492,1741080293530,-3000.0,0.00014,14]
[355362493,1741080301161,-3000.0,0.00014,14]
[355362494,1741080306947,-3000.0,0.00014,14]
[355362495,1741080308683,-150.0,0.00010426,2]
[355362496,1741080312964,-3000.0,0.00014,14]
[355362497,1741080315656,-3000.0,0.00014,14]
[355362498,1741080317107,-150.0,0.00010426,2]
[355362499,1741080323010,-2500.0,0.00014,14]
[355362500,1741080324853,-2500.0,0.00014,14]
[355362502,1741080332896,303.91599014,0.0002,120]
[355362503,1741080341887,-2500.0,0.00014,14]
[355362504,1741080343444,-2500.0,0.00014,14]
[355362505,1741080345181,-2500.0,0.00014,14]
[355362506,1741080346356,-2469.0,0.00014,14]
[355362507,1741080352238,-46.376169,0.00010426,2]
[355362508,1741080352263,-472.853831,0.00010479,2]
[355362510,1741080398818,-153.386169,0.00010479,2]
[355362511,1741080398843,-92.233831,0.00010778,2]
[355362512,1741080404123,-855.2833159,0.00010778,2]
[355362513,1741080404151,-128.50295503,0.00010825,2]
[355362514,1741080404177,-300.0,0.00010836,2]
[355362515,1741080404202,-8295.1178,0.00010838,2]
[355362516,1741080404226,-16880.24095499,0.00010838,2]
[355362517,1741080404250,-313.4985,0.00010883,2]
[355362518,1741080404274,-267.3227,0.00010892,2]
[355362519,1741080404298,-2510.5302,0.00010892,2]
[355362520,1741080404322,-1035.4218,0.00010892,2]
[355362521,1741080404346,-3892.7288,0.00010892,2]
[355362522,1741080404370,-6636.105,0.00010892,2]
[355362523,1741080404394,-1442.7488,0.00010892,2]
[355362524,1741080404417,-2048.3004,0.00010892,2]
[355362525,1741080404441,-1925.3339,0.00010892,2]
[355362526,1741080404466,-1000.0,0.00010892,2]
[355362527,1741080404490,-311.5791,0.00010893,2]
[355362528,1741080404513,-1000.0,0.00010893,2]
[355362529,1741080404536,-260.53139997,0.00010894,2]
[355362530,1741080404561,-167.50445815,0.000109,2]
[355362531,1741080404586,-158.9,0.00010927,2]
[355362532,1741080404615,-3077.95540416,0.00010938,2]
[355362533,1741080404640,-3591.26,0.00010959,2]
[355362534,1741080404663,-200.0,0.00010959,2]
[355362535,1741080404690,-1039.93764838,0.00010982,2]
[355362536,1741080404715,-150.0,0.00010982,2]
[355362537,1741080404739,-62218.95588344,0.00010983,2]
[355362538,1741080404762,-1724.99,0.00010983,2]
[355362539,1741080404787,-151.0,0.00010989,2]
[355362540,1741080404810,-292.30572008,0.00010989,2]
[355362541,1741080404834,-2350.48416367,0.00010992,2]
[355362542,1741080404858,-1370.81,0.00010992,2]
[355362543,1741080404882,-500.0,0.00010992,2]
[355362544,1741080404908,-536.59,0.00010992,2]
[355362545,1741080404933,-1663.83,0.00010992,2]
[355362546,1741080404957,-923.28,0.00010992,2]
[355362547,1741080404981,-1417.86,0.00010992,2]
[355362548,1741080405007,-1020.77,0.00010992,2]
[355362549,1741080405032,-900.71,0.00010992,2]
[355362550,1741080405354,-1108.29,0.00010992,2]
[355362551,1741080405380,-500.0,0.00010992,2]
[355362552,1741080405405,-500.0,0.00010992,2]
[355362553,1741080405430,-949.21,0.00010992,2]
[355362554,1741080405454,-500.0,0.00010992,2]
[355362555,1741080405480,-944.5,0.00010992,2]
[355362556,1741080405505,-722.41,0.00010992,2]
[355362557,1741080405529,-1201.28,0.00010992,2]
[355362558,1741080405553,-1168.48,0.00010992,2]
[355362559,1741080405578,-790.23,0.00010992,2]
[355362560,1741080405604,-648.7,0.00010992,2]
[355362561,1741080405630,-5841.56,0.00010992,2]
[355362562,1741080405661,-829.53,0.00010992,2]
[355362563,1741080405899,-500.0,0.00010992,2]
[355362564,1741080405924,-676.7,0.00010992,2]
[355362565,1741080405952,-2242.38,0.00010992,2]
[355362566,1741080405977,-831.12,0.00010992,2]
[355362567,1741080406004,-819.26,0.00010992,2]
[355362568,1741080406031,-794.92,0.00010992,2]
[355362569,1741080406058,-1452.5,0.00010992,2]
[355362570,1741080406087,-2027.32,0.00010992,2]
[355362571,1741080406114,-1200.358407,0.00010992,2]
[355362572,1741080406139,-735.25,0.00010992,2]
[355362573,1741080406166,-2345.39,0.00010992,2]
[355362574,1741080406192,-1104.43,0.00010992,2]
[355362575,1741080406218,-505.19,0.00010992,2]
[355362576,1741080406247,-2194.56,0.00010992,2]
[355362577,1741080406274,-1720.885449,0.00010992,2]
[355362578,1741080406299,-500.0,0.00010992,2]
[355362579,1741080406325,-693.36,0.00010992,2]
[355362580,1741080406351,-553.49,0.00010992,2]
[355362581,1741080406377,-2254.39,0.00010992,2]
[355362582,1741080406403,-500.0,0.00010992,2]
[355362583,1741080406432,-797.39,0.00010992,2]
[355362584,1741080406458,-4773.74,0.00010992,2]
[355362585,1741080406484,-713.97,0.00010992,2]
[355362586,1741080406510,-500.0,0.00010992,2]
[355362587,1741080406536,-1096.63,0.00010992,2]
[355362588,1741080406562,-2410.06,0.00010992,2]
[355362589,1741080406588,-722.18,0.00010992,2]
[355362590,1741080406616,-1669.28,0.00010992,2]
[355362591,1741080406642,-500.0,0.00010992,2]
[355362592,1741080406669,-1017.8,0.00010992,2]
[355362593,1741080406696,-678.12,0.00010992,2]
[355362594,1741080406721,-3683.06,0.00010992,2]
[355362595,1741080406747,-2682.73,0.00010992,2]
[355362596,1741080406773,-1623.94,0.00010992,2]
[355362597,1741080406800,-754.08,0.00010992,2]
[355362598,1741080406826,-2810.52,0.00010992,2]
[355362599,1741080406852,-3550.18,0.00010992,2]
[355362600,1741080406877,-817.04,0.00010992,2]
[355362601,1741080406903,-3051.58,0.00010992,2]
[355362602,1741080406928,-1349.31,0.00010992,2]
[355362603,1741080406954,-5762.73,0.00010992,2]
[355362604,1741080406979,-1161.99,0.00010992,2]
[355362605,1741080407008,-1339.41,0.00010992,2]
[355362606,1741080407034,-1314.36,0.00010992,2]
[355362607,1741080407060,-500.0,0.00010992,2]
[355362608,1741080407087,-590.14,0.00010992,2]
[355362609,1741080407113,-1016.81,0.00010992,2]
[355362610,1741080407139,-2627.14,0.00010992,2]
[355362611,1741080407165,-1751.35,0.00010992,2]
[355362612,1741080407192,-2741.54,0.00010992,2]
[355362613,1741080407220,-1413.07,0.00010992,2]
[355362614,1741080407246,-2168.39,0.00010992,2]
[355362615,1741080407272,-2079.55,0.00010992,2]
[355362616,1741080407300,-625.16,0.00010992,2]
[355362617,1741080407327,-11107.78,0.00010992,2]
[355362618,1741080407354,-1698.56,0.00010992,2]
[355362619,1741080407380,-500.0,0.00010992,2]
[355362620,1741080407405,-2164.04,0.00010992,2]
[355362621,1741080407430,-565.24,0.00010992,2]
[355362622,1741080407456,-2595.81,0.00010992,2]
[355362623,1741080407481,-1694.52,0.00010992,2]
[355362624,1741080407508,-1425.82,0.00010992,2]
[355362625,1741080407535,-1997.27,0.00010992,2]
[355362626,1741080407560,-1487.58,0.00010992,2]
[355362627,1741080407585,-1962.3,0.00010992,2]
[355362628,1741080407612,-500.0,0.00010992,2]
[355362629,1741080407639,-2067.42,0.00010992,2]
[355362630,1741080407663,-1184.88,0.00010992,2]
[355362631,1741080407693,-2729.24,0.00010992,2]
[355362632,1741080407720,-580.15,0.00010992,2]
[355362633,1741080407745,-2569.87,0.00010992,2]
[355362634,1741080407772,-981.37,0.00010992,2]
[355362635,1741080407811,-887.96,0.00010992,2]
[355362636,1741080407839,-520.51,0.00010992,2]
[355362637,1741080407867,-875.61,0.00010992,2]
[355362638,1741080407895,-1895.89,0.00010992,2]
[355362639,1741080407922,-500.0,0.00010992,2]
[355362640,1741080407950,-1148.68,0.00010992,2]
[355362641,1741080407976,-2428.0,0.00010992,2]
[355362642,1741080408006,-2221.46,0.00010992,2]
[355362643,1741080408033,-745.16,0.00010992,2]
[355362644,1741080408061,-722.86,0.00010992,2]
[355362645,1741080408357,-1196.03,0.00010992,2]
[355362646,1741080408393,-3432.33,0.00010992,2]
[355362647,1741080408418,-1379.44,0.00010992,2]
[355362648,1741080408444,-871.68,0.00010992,2]
[355362649,1741080408470,-500.0,0.00010992,2]
[355362650,1741080408498,-500.0,0.00010992,2]
[355362651,1741080408525,-500.0,0.00010992,2]
[355362652,1741080408553,-500.0,0.00010992,2]
[355362653,1741080408581,-477.87232145,0.00010992,2]
[355362654,1741080408606,-2070.27,0.00010992,2]
[355362655,1741080408632,-500.0,0.00010992,2]
[355362656,1741080408660,-500.0,0.00010992,2]
[355362657,1741080408688,-500.0,0.00010992,2]
[355362658,1741080408716,-500.0,0.00010992,2]
[355362659,1741080408742,-2169.85,0.00010992,2]
[355362661,1741080408766,-801.29,0.00010992,2]
[355362662,1741080408792,-2353.63,0.00010992,2]
[355362663,1741080408818,-538.21,0.00010992,2]
[355362664,1741080408844,-4630.88,0.00010992,2]
[355362665,1741080408871,-500.0,0.00010993,2]
[355362666,1741080408898,-714.16,0.00010993,2]
[355362667,1741080408926,-500.0,0.00010993,2]
[355362668,1741080408961,-378.64908429,0.00010993,2]
[355362669,1741080408990,-582.82,0.00010993,2]
[355362670,1741080409019,-500.0,0.00010993,2]
[355362671,1741080409048,-370.43741678,0.00010993,2]
[355362672,1741080409077,-500.0,0.00010993,2]
[355362673,1741080409106,-678.38,0.00010993,2]
[355362674,1741080409134,-560.07,0.00010993,2]
[355362675,1741080409160,-568.79,0.00010993,2]
[355362676,1741080409188,-594.97,0.00010993,2]
[355362677,1741080409218,-500.0,0.00010993,2]
[355362678,1741080409244,-500.0,0.00010993,2]
[355362679,1741080409271,-500.0,0.00010993,2]
[355362680,1741080409298,-500.0,0.00010993,2]
[355362681,1741080409324,-706.34,0.00010993,2]
[355362682,1741080409352,-1159.96,0.00010993,2]
[355362683,1741080409378,-687.45,0.00010993,2]